Workbook

Sheet Anfang
B1: ÜBER DIESE VORLAGE
B2: Verwenden Sie diese Vorlage zum Erstellen eines Marketingbudget Vertriebskanal.
B3: Geben Sie erwartete Umsätze für jeden Monat und weitere Details in die Tabellen ein.
B4: Summen werden automatisch berechnet und Sparklines aktualisiert.
B5: Anmerkung:
B6: Zusätzliche Anweisungen wurden in Spalte A auf dem Arbeitsblatt MARKETINGBUDGET VERTRIEBSKANAL bereitgestellt. Diese Texte wurden absichtlich ausgeblendet. Um die Texte zu entfernen, wählen Sie Spalte A und dann ENTF aus. Um die Texte einzublenden, wählen Sie Spalte A aus, und ändern Sie die Schriftfarbe.
B7: Um mehr über Tabellen zu erfahren, drücken Sie die UMSCHALTTASTE und dann F10 innerhalb einer Tabelle, und wählen Sie die Option TABELLE und dann ALTERNATIVTEXT aus.

Sheet Marketingbudget Vertriebskanal
A1: Erstellen Sie auf diesem Arbeitsblatt ein Marketingbudget Vertriebskanal. Der Titel dieses Arbeitsblatts befindet sich in der Zelle rechts. Nützliche Anweisungen befinden sich in Zellen in dieser Spalte. Drücken Sie die NACH-UNTEN-TASTE, um anzufangen. Der Titel dieses Arbeitsblatts befindet sich in der Zelle rechts.
A2: Die Beschriftungen für den Satz und die Monate befinden sich in dieser Zeile in den Zellen C2 bis O2, und die Beschriftung "Ergebnis" befindet sich in Zelle Q2. | C2: Satz | D2: Monat 1 | E2: Monat 2 | F2: Monat 3 | G2: Monat 4 | H2: Monat 5 | I2: Monat 6 | J2: Monat 7 | K2: Monat 8 | L2: Monat 9 | M2: Monat 10 | N2: Monat 11 | O2: Monat 12 | Q2: Ergebnis
A3: Die Beschriftung "Summe erwarteter Umsätze" befindet sich in der Zelle rechts. Geben Sie in den Zellen D3 bis O3 erwartete Umsätze für jeden Monat ein. Die Summe wird in Zelle Q3 automatisch berechnet. | B3: SUMME ERWARTETER UMSÄTZE (000) € | D3: 750 | E3: 200 | F3: 500 | G3: 1,500 | H3: 1,200 | I3: 1,500 | J3: 1,500 | K3: 1,800 | L3: 2,000 | M3: 2,000 | N3: 2,000 | O3: 2,000 | Q3: =SUM(D3:O3) -> 16,950
A4: Geben Sie Details in der Tabelle "Personal" ein, die in der Zelle rechts beginnt. Die Summe für das Personal für jeden Monat wird am Tabellenende und die jährliche Ergebnis in Zelle Q9 automatisch berechnet. Die Sparkline wird in Zelle S9 aktualisiert. Die nächste Anweisung finden Sie in Zelle A10. | B4: Personalposten | C4: Satz | D4: Monat 1 | E4: Monat 2 | F4: Monat 3 | G4: Monat 4 | H4: Monat 5 | I4: Monat 6 | J4: Monat 7 | K4: Monat 8 | L4: Monat 9 | M4: Monat 10 | N4: Monat 11 | O4: Monat 12
B5: PERSONAL (% DES GESAMTUMSATZES) | D5: =D11+D36+D44+D51 -> 110% | E5: 110% | F5: =F11+F36+F44+F51 -> 110% | G5: 110% | H5: 110% | I5: 110% | J5: 110% | K5: 110% | L5: 85% | M5: 85% | N5: 85% | O5: 85%
B6: Personal – Mitarbeiterzahl | C6: 5 | D6: =+$C$6 -> 5 | E6: 5 | F6: 5 | G6: 5 | H6: 5 | I6: 5 | J6: 5 | K6: 5 | L6: 5 | M6: 5 | N6: 5 | O6: 5
B7: Personal – Kosten | D7: =$C$6*D6 -> 25.00 | E7: 25.00 | F7: 25.00 | G7: 25.00 | H7: 25.00 | I7: 25.00 | J7: 25.00 | K7: 25.00 | L7: 25.00 | M7: 25.00 | N7: 25.00 | O7: 25.00 | Q7: =SUM('Marketingbudget Vertriebskanal'!$D7:$O7) -> 300.00
B8: Provision | C8: 0.10% | D8: =D3*$C$8 -> 0.75 | E8: 0.20 | F8: 0.50 | G8: 1.50 | H8: 1.20 | I8: 1.50 | J8: 1.50 | K8: 1.80 | L8: 2.00 | M8: 2.00 | N8: 2.00 | O8: 2.00 | Q8: =SUM('Marketingbudget Vertriebskanal'!$D8:$O8) -> 16.95
B9: Summe Personal (000) € | D9: =SUM(D7:D8) -> 25.75 | E9: =SUM(E7:E8) -> 25.20 | F9: 25.50 | G9: 26.50 | H9: 26.20 | I9: 26.50 | J9: 26.50 | K9: 26.80 | L9: 27.00 | M9: 27.00 | N9: 27.00 | O9: 27.00 | Q9: =SUM(Q7:Q8) -> 316.95
A10: Geben Sie Details in der Tabelle "Direktmarketing" ein, die in der Zelle rechts beginnt. Die Ergebnis für das Telemarketing für jeden Monat wird am Tabellenende und die jährliche Ergebnis in Zelle Q17 automatisch berechnet. Sparkline wird in Zelle S17 aktualisiert. Die nächste Anweisung finden Sie in Zelle A18. | B10: DIREKTMARKETINGPOSTEN | C10: Satz | D10: Monat 1 | E10: Monat 2 | F10: Monat 3 | G10: Monat 4 | H10: Monat 5 | I10: Monat 6 | J10: Monat 7 | K10: Monat 8 | L10: Monat 9 | M10: Monat 10 | N10: Monat 11 | O10: Monat 12
B11: DIREKTMARKETING (% DES GESAMTUMSATZES) | D11: 100% | E11: 100% | F11: 75% | G11: 40% | H11: 33% | I11: 25% | J11: 20% | K11: 10% | L11: 5% | M11: 5% | N11: 5% | O11: 5%
B12: Telemarketing (% des Direktvertriebs) | D12: 100% | E12: 50% | F12: 50% | G12: 50% | H12: 50% | I12: 50% | J12: 50% | K12: 50% | L12: 50% | M12: 50% | N12: 50% | O12: 50%
B13: Personal – Mitarbeiterzahl | C13: 3 | D13: =$C$13*D12 -> 3 | E13: 1.5 | F13: 1.5 | G13: 1.5 | H13: 1.5 | I13: 1.5 | J13: 1.5 | K13: 1.5 | L13: 1.5 | M13: 1.5 | N13: 1.5 | O13: 1.5 | Q13: =SUM('Marketingbudget Vertriebskanal'!$D13:$O13) -> 19.50
B14: Infrastrukturunterstützung | D14: 25 | E14: 10 | F14: 25 | G14: 10 | H14: 25 | I14: 10 | J14: 25 | K14: 10 | L14: 25 | M14: 10 | N14: 25 | O14: 10 | Q14: =SUM('Marketingbudget Vertriebskanal'!$D14:$O14) -> 210.00
B15: Provision | C15: 0.10% | D15: =$C$15*D3*D11*D12 -> 0.75 | E15: 0.10 | F15: 0.19 | G15: 0.30 | H15: 0.20 | I15: 0.19 | J15: 0.15 | K15: 0.09 | L15: 0.05 | M15: 0.05 | N15: 0.05 | O15: 0.05 | Q15: =SUM('Marketingbudget Vertriebskanal'!$D15:$O15) -> 2.16
B16: Schulung | D16: 25 | E16: 10 | F16: 25 | G16: 10 | H16: 25 | I16: 10 | J16: 25 | K16: 10 | L16: 25 | M16: 10 | N16: 25 | O16: 10 | Q16: =SUM('Marketingbudget Vertriebskanal'!$D16:$O16) -> 210.00
B17: Summe Telemarketing (000) € | D17: =SUM(D13:D16) -> 53.75 | E17: =SUM(E13:E16) -> 21.60 | F17: =SUM(F13:F16) -> 51.69 | G17: 21.80 | H17: 51.70 | I17: 21.69 | J17: 51.65 | K17: 21.59 | L17: 51.55 | M17: 21.55 | N17: 51.55 | O17: 21.55 | Q17: =SUM(Q13:Q16) -> 441.66
A18: Geben Sie Details in die Tabelle "Internetmarketing" ein, die in der Zelle rechts beginnt. Die Summe für das Internetmarketing für jeden Monat wird am Tabellenende und die jährliche Ergebnis in Zelle Q27 automatisch berechnet. Die Sparkline wird in Zelle S27 aktualisiert. Die nächste Anweisung finden Sie in Zelle A28. | B18: INTERNETMARKETINGPOSTEN | C18: Satz | D18: Monat 1 | E18: Monat 2 | F18: Monat 3 | G18: Monat 4 | H18: Monat 5 | I18: Monat 6 | J18: Monat 7 | K18: Monat 8 | L18: Monat 9 | M18: Monat 10 | N18: Monat 11 | O18: Monat 12
B19: INTERNETMARKETING (% DES DIREKTVERTRIEBS) | D19: 25% | E19: 25% | F19: 25% | G19: 25% | H19: 25% | I19: 25% | J19: 25% | K19: 25% | L19: 25% | M19: 25% | N19: 25% | O19: 25%
B20: Personal – Mitarbeiterzahl | C20: 1 | D20: =$C$20*D19 -> 0.25 | E20: 0.25 | F20: 0.25 | G20: 0.25 | H20: 0.25 | I20: 0.25 | J20: 0.25 | K20: 0.25 | L20: 0.25 | M20: 0.25 | N20: 0.25 | O20: 0.25 | Q20: =SUM('Marketingbudget Vertriebskanal'!$D20:$O20) -> 3.00
B21: Websiteentwicklung (einmalige Kosten) | D21: 500 | Q21: =SUM('Marketingbudget Vertriebskanal'!$D21:$O21) -> 500.00
B22: Hosting | D22: 10 | E22: 10 | F22: 10 | G22: 10 | H22: 10 | I22: 10 | J22: 10 | K22: 10 | L22: 10 | M22: 10 | N22: 10 | O22: 10 | Q22: =SUM('Marketingbudget Vertriebskanal'!$D22:$O22) -> 120.00
B23: Support und Wartung | D23: 25 | N23: 25 | Q23: =SUM('Marketingbudget Vertriebskanal'!$D23:$O23) -> 50.00
B24: Facebook | E24: 100 | G24: 100 | I24: 100 | K24: 100 | M24: 100 | O24: 100 | Q24: =SUM('Marketingbudget Vertriebskanal'!$D24:$O24) -> 600.00
B25: Twitter | D25: 100 | F25: 100 | H25: 100 | J25: 100 | L25: 100 | N25: 100 | Q25: =SUM('Marketingbudget Vertriebskanal'!$D25:$O25) -> 600.00
B26: YouTube | E26: 100 | G26: 100 | H26: 100 | L26: 100 | M26: 100 | O26: 100 | Q26: =SUM('Marketingbudget Vertriebskanal'!$D26:$O26) -> 600.00
B27: Summe Internetmarketing (000) € | D27: =SUM(D20:D26) -> 635.25 | E27: =SUM(E20:E26) -> 210.25 | F27: 110.25 | G27: 210.25 | H27: 210.25 | I27: 110.25 | J27: 110.25 | K27: 110.25 | L27: 210.25 | M27: 210.25 | N27: 135.25 | O27: =SUM(O20:O26) -> 210.25 | Q27: =SUM(Q20:Q26) -> 2,473.00
A28: Geben Sie Details in die Tabelle "Direktwerbung" ein, die in der Zelle rechts beginnt. Die Summe für die Direktwerbung für jeden Monat wird am Tabellenende und die jährliche Ergebnis in Zelle Q34 automatisch berechnet. Die nächste Anweisung finden Sie in Zelle A35. | B28: DIREKTWERBUNGSPOSTEN | C28: Satz | D28: Monat 1 | E28: Monat 2 | F28: Monat 3 | G28: Monat 4 | H28: Monat 5 | I28: Monat 6 | J28: Monat 7 | K28: Monat 8 | L28: Monat 9 | M28: Monat 10 | N28: Monat 11 | O28: Monat 12
B29: DIREKTWERBUNG (% DES DIREKTVERTRIEBS)
B30: Personal – Kosten | Q30: =SUM('Marketingbudget Vertriebskanal'!$D30:$O30) -> 0.00
B31: Material | D31: 1000 | E31: 1000 | F31: 1000 | G31: 1000 | H31: 1000 | I31: 1000 | J31: 1000 | K31: 1000 | L31: 1000 | M31: 1000 | N31: 1000 | O31: 1000 | Q31: =SUM('Marketingbudget Vertriebskanal'!$D31:$O31) -> 12,000.00
B32: Porto | D32: 250 | E32: 250 | F32: 250 | G32: 250 | H32: 250 | I32: 250 | J32: 250 | K32: 250 | L32: 250 | M32: 250 | N32: 250 | O32: 250 | Q32: =SUM('Marketingbudget Vertriebskanal'!$D32:$O32) -> 3,000.00
B33: Summe Direktwerbung (000) € | D33: =SUM(D30:D32) -> 1,250.00 | E33: =SUM(E30:E32) -> 1,250.00 | F33: 1,250.00 | G33: 1,250.00 | H33: 1,250.00 | I33: 1,250.00 | J33: 1,250.00 | K33: 1,250.00 | L33: 1,250.00 | M33: 1,250.00 | N33: 1,250.00 | O33: 1,250.00 | Q33: =SUM(Q30:Q32) -> 15,000.00
A34: Die Summe Direktmarketing wird in dieser Zeile in den Zellen D31 bis O31 und die jährliche Summe in Zelle Q31 automatisch berechnet. Die Sparkline wird in Zelle S31 aktualisiert. | B34: Summe Direktmarketing (000) € | D34: =SUM(Direktwerbung[[#Totals],[Monat 1]],Internetmarketing[[#Totals],[Monat 1]],Direktmarketing[[#Totals],[Monat 1]]) -> 1,939.00 | E34: =SUM(Direktwerbung[[#Totals],[Monat 2]],Internetmarketing[[#Totals],[Monat 2]],Direktmarketing[[#Totals],[Monat 2]]) -> 1,481.85 | F34: =SUM(Direktwerbung[[#Totals],[Monat 3]],Internetmarketing[[#Totals],[Monat 3]],Direktmarketing[[#Totals],[Monat 3]]) -> 1,411.94 | G34: =SUM(Direktwerbung[[#Totals],[Monat 4]],Internetmarketing[[#Totals],[Monat 4]],Direktmarketing[[#Totals],[Monat 4]]) -> 1,482.05 | H34: =SUM(Direktwerbung[[#Totals],[Monat 5]],Internetmarketing[[#Totals],[Monat 5]],Direktmarketing[[#Totals],[Monat 5]]) -> 1,511.95 | I34: =SUM(Direktwerbung[[#Totals],[Monat 6]],Internetmarketing[[#Totals],[Monat 6]],Direktmarketing[[#Totals],[Monat 6]]) -> 1,381.94 | J34: =SUM(Direktwerbung[[#Totals],[Monat 7]],Internetmarketing[[#Totals],[Monat 7]],Direktmarketing[[#Totals],[Monat 7]]) -> 1,411.90 | K34: =SUM(Direktwerbung[[#Totals],[Monat 8]],Internetmarketing[[#Totals],[Monat 8]],Direktmarketing[[#Totals],[Monat 8]]) -> 1,381.84 | L34: =SUM(Direktwerbung[[#Totals],[Monat 9]],Internetmarketing[[#Totals],[Monat 9]],Direktmarketing[[#Totals],[Monat 9]]) -> 1,511.80 | M34: =SUM(Direktwerbung[[#Totals],[Monat 10]],Internetmarketing[[#Totals],[Monat 10]],Direktmarketing[[#Totals],[Monat 10]]) -> 1,481.80 | N34: =SUM(Direktwerbung[[#Totals],[Monat 11]],Internetmarketing[[#Totals],[Monat 11]],Direktmarketing[[#Totals],[Monat 11]]) -> 1,436.80 | O34: =SUM(Direktwerbung[[#Totals],[Monat 12]],Internetmarketing[[#Totals],[Monat 12]],Direktmarketing[[#Totals],[Monat 12]]) -> 1,481.80 | Q34: =SUM(Q33,Q27,Q17,Q9) -> 18,231.61
A35: Geben Sie Details in die Tabelle "Agenten und Makler" ein, die in der Zelle rechts beginnt. Die Summe für Agenten und Makler für jeden Monat wird am Tabellenende und die jährliche Ergebnis in Zelle Q42 automatisch berechnet. Die Sparkline wird in Zelle S42 aktualisiert. Die nächste Anweisung finden Sie in Zelle A43. | B35: AGENT-/MAKLERPOSTEN | C35: Satz | D35: Monat 1 | E35: Monat 2 | F35: Monat 3 | G35: Monat 4 | H35: Monat 5 | I35: Monat 6 | J35: Monat 7 | K35: Monat 8 | L35: Monat 9 | M35: Monat 10 | N35: Monat 11 | O35: Monat 12
B36: AGENT/MAKLER (% DES GESAMTUMSATZES) | D36: 10% | E36: 10% | F36: 10% | G36: 10% | H36: 10% | I36: 10% | J36: 10% | K36: 10% | L36: 10% | M36: 10% | N36: 10% | O36: 10%
B37: Kommunikation | D37: 50 | E37: 50 | F37: 50 | G37: 50 | H37: 50 | I37: 50 | J37: 50 | K37: 50 | L37: 50 | M37: 50 | N37: 50 | O37: 50 | Q37: =SUM('Marketingbudget Vertriebskanal'!$D37:$O37) -> 600.00
B38: Schulung | D38: 250.00 | E38: 250.00 | F38: 250.00 | G38: 250.00 | H38: 250.00 | I38: 250.00 | J38: 250.00 | K38: 250.00 | L38: 250.00 | M38: 250.00 | N38: 250.00 | O38: 250.00 | Q38: =SUM('Marketingbudget Vertriebskanal'!$D38:$O38) -> 3,000.00
B39: Werbeaktionen | D39: 600.00 | E39: 600.00 | F39: 600.00 | G39: 600.00 | H39: 600.00 | I39: 600.00 | J39: 600.00 | K39: 600.00 | L39: 600.00 | M39: 600.00 | N39: 600.00 | O39: 600.00 | Q39: =SUM('Marketingbudget Vertriebskanal'!$D39:$O39) -> 7,200.00
B40: Rabatte | C40: 10.00% | D40: =D3*D36*$C$40 -> 7.50 | E40: 2.00 | F40: 5.00 | G40: 15.00 | H40: 12.00 | I40: 15.00 | J40: 15.00 | K40: 18.00 | L40: 20.00 | M40: 20.00 | N40: 20.00 | O40: 20.00 | Q40: =SUM('Marketingbudget Vertriebskanal'!$D40:$O40) -> 169.50
B41: Provision (% des Agent-/Maklerumsatzes) | C41: 10.00% | D41: =D3*D36*$C$41 -> 7.50 | E41: 2.00 | F41: 5.00 | G41: 15.00 | H41: 12.00 | I41: 15.00 | J41: 15.00 | K41: 18.00 | L41: 20.00 | M41: 20.00 | N41: 20.00 | O41: 20.00 | Q41: =SUM('Marketingbudget Vertriebskanal'!$D41:$O41) -> 169.50
B42: Summe Agent/Makler (000) € | D42: =SUM(D37:D41) -> 915.00 | E42: =SUM(E37:E41) -> 904.00 | F42: 910.00 | G42: 930.00 | H42: 924.00 | I42: 930.00 | J42: 930.00 | K42: 936.00 | L42: 940.00 | M42: 940.00 | N42: 940.00 | O42: 940.00 | Q42: =SUM(Q37:Q41) -> 11,139.00
A43: Geben Sie Details in die Tabelle "Verteiler" ein, die in der Zelle rechts beginnt. Die Ergebnis für Verteiler für jeden Monat wird am Tabellenende und die jährliche Ergebnis in Zelle Q49 automatisch berechnet. Die Sparkline wird in Zelle S49 aktualisiert. Die nächste Anweisung finden Sie in Zelle A50. | B43: VERTEILERPOSTEN | C43: Satz | D43: Monat 1 | E43: Monat 2 | F43: Monat 3 | G43: Monat 4 | H43: Monat 5 | I43: Monat 6 | J43: Monat 7 | K43: Monat 8 | L43: Monat 9 | M43: Monat 10 | N43: Monat 11 | O43: Monat 12
B44: VERTEILER (% DES GESAMTUMSATZES) | D44: 0% | E44: 0% | F44: 0% | G44: 0% | H44: 0% | I44: 15% | J44: 20% | K44: 40% | L44: 40% | M44: 40% | N44: 40% | O44: 40%
B45: Kommunikation | D45: 50 | E45: 50 | F45: 50 | G45: 50 | H45: 50 | I45: 50 | J45: 50 | K45: 50 | L45: 50 | M45: 50 | N45: 50 | O45: 50 | Q45: =SUM('Marketingbudget Vertriebskanal'!$D45:$O45) -> 600.00
B46: Schulung | D46: 250.00 | E46: 250.00 | F46: 250.00 | G46: 250.00 | H46: 250.00 | I46: 250.00 | J46: 250.00 | K46: 250.00 | L46: 250.00 | M46: 250.00 | N46: 250.00 | O46: 250.00 | Q46: =SUM(Verteiler[[#This Row],[Monat 1]:[Monat 12]]) -> 3,000.00
B47: Werbeaktionen | D47: 600.00 | E47: 600.00 | F47: 600.00 | G47: 600.00 | H47: 600.00 | I47: 600.00 | J47: 600.00 | K47: 600.00 | L47: 600.00 | M47: 600.00 | N47: 600.00 | O47: 600.00 | Q47: =SUM(Verteiler[[#This Row],[Monat 1]:[Monat 12]]) -> 7,200.00
B48: Provision/Rabatte (% des Verteilerumsatzes) | C48: 15.00% | D48: =D3*D44*$C$48 -> 0 | E48: 0 | F48: 0 | G48: 0 | H48: 0 | I48: 33.75 | J48: 45 | K48: 108 | L48: 120 | M48: 120 | N48: 120 | O48: 120 | Q48: =SUM(Verteiler[[#This Row],[Monat 1]:[Monat 12]]) -> 666.75
B49: Summe Verteiler (000) € | D49: =SUM(D45:D48) -> 900.00 | E49: =SUM(E45:E48) -> 900.00 | F49: 900.00 | G49: 900.00 | H49: 900.00 | I49: 933.75 | J49: 945.00 | K49: 1,008.00 | L49: 1,020.00 | M49: 1,020.00 | N49: 1,020.00 | O49: 1,020.00 | Q49: =SUM(Q45:Q48) -> 11,466.75
A50: Geben Sie Details in die Tabelle "Einzelhändler" ein, die in der Zelle rechts beginnt. Die Summe für Einzelhändler für jeden Monat wird am Tabellenende und die jährliche Ergebnis in Zelle Q56 automatisch berechnet. Die Sparkline wird in Zelle S56 aktualisiert. Die nächste Anweisung finden Sie in Zelle A57. | B50: EINZELHÄNDLERPOSTEN | C50: Satz | D50: Monat 1 | E50: Monat 2 | F50: Monat 3 | G50: Monat 4 | H50: Monat 5 | I50: Monat 6 | J50: Monat 7 | K50: Monat 8 | L50: Monat 9 | M50: Monat 10 | N50: Monat 11 | O50: Monat 12
B51: EINZELHÄNDLER (% DES GESAMTUMSATZES) | D51: 0% | E51: 0% | F51: 25% | G51: 60% | H51: 67% | I51: 60% | J51: 60% | K51: 50% | L51: 30% | M51: 30% | N51: 30% | O51: 30%
B52: Kommunikation | D52: 50 | E52: 50 | F52: 50 | G52: 50 | H52: 50 | I52: 50 | J52: 50 | K52: 50 | L52: 50 | M52: 50 | N52: 50 | O52: 50
B53: Schulung | D53: 250.00 | E53: 250.00 | F53: 250.00 | G53: 250.00 | H53: 250.00 | I53: 250.00 | J53: 250.00 | K53: 250.00 | L53: 250.00 | M53: 250.00 | N53: 250.00 | O53: 250.00 | Q53: =SUM('Marketingbudget Vertriebskanal'!$D52:$O52) -> 600.00
B54: Werbeaktionen | D54: 600.00 | E54: 600.00 | F54: 600.00 | G54: 600.00 | H54: 600.00 | I54: 600.00 | J54: 600.00 | K54: 600.00 | L54: 600.00 | M54: 600.00 | N54: 600.00 | O54: 600.00 | Q54: =SUM('Marketingbudget Vertriebskanal'!$D53:$O53) -> 3,000.00
B55: Provision/Rabatte (% des Einzelhändlerumsatzes) | C55: 10.00% | D55: =D3*D51*$C$55 -> 0 | E55: 0 | F55: 12.5 | G55: 90 | H55: 80.4 | I55: 90 | J55: 90 | K55: 90 | L55: 60 | M55: 60 | N55: 60 | O55: 60 | Q55: =SUM('Marketingbudget Vertriebskanal'!$D55:$O55) -> 692.90
B56: Summe Einzelhändler (000) € | D56: =SUM(D52:D55) -> 900.00 | E56: =SUM(E52:E55) -> 900.00 | F56: 912.50 | G56: 990.00 | H56: 980.40 | I56: 990.00 | J56: 990.00 | K56: 990.00 | L56: 960.00 | M56: 960.00 | N56: 960.00 | O56: 960.00 | Q56: =SUM(Q53:Q55) -> 4,292.90
A57: Geben Sie Details in die Tabelle "Kundengewinnung und -bindung" ein, die in der Zelle rechts beginnt. Die Summe für Kundengewinnung und -bindung für jeden Monat wird am Tabellenende und die jährliche Ergebnis in Zelle Q62 automatisch berechnet. Die Sparkline wird in Zelle S62 aktualisiert. Die nächste Anweisung finden Sie in Zelle A63. | B57: POSTEN FÜR KUNDENGEWINNUNG und -BINDUNG | C57: Satz | D57: Monat 1 | E57: Monat 2 | F57: Monat 3 | G57: Monat 4 | H57: Monat 5 | I57: Monat 6 | J57: Monat 7 | K57: Monat 8 | L57: Monat 9 | M57: Monat 10 | N57: Monat 11 | O57: Monat 12
B58: KUNDENGEWINNUNG UND -BINDUNG
B59: Personal | D59: 50 | E59: 50 | F59: 50 | G59: 50 | H59: 50 | I59: 50 | J59: 50 | K59: 50 | L59: 50 | M59: 50 | N59: 50 | O59: 50 | Q59: =SUM('Marketingbudget Vertriebskanal'!$D59:$O59) -> 600.00
B60: Kommunikation | D60: 250.00 | E60: 250.00 | F60: 250.00 | G60: 250.00 | H60: 250.00 | I60: 250.00 | J60: 250.00 | K60: 250.00 | L60: 250.00 | M60: 250.00 | N60: 250.00 | O60: 250.00 | Q60: =SUM('Marketingbudget Vertriebskanal'!$D60:$O60) -> 3,000.00
B61: Werbeaktionen/Gutscheine | D61: 600 | E61: 600 | F61: 600 | G61: 600 | H61: 600 | I61: 600 | J61: 600 | K61: 600 | L61: 600 | M61: 600 | N61: 600 | O61: 600 | Q61: =SUM('Marketingbudget Vertriebskanal'!$D61:$O61) -> 7,200.00
B62: Summe Kundengewinnung und -bindung (000) € | D62: =SUM(D59:D61) -> 900.00 | E62: =SUM(E59:E61) -> 900.00 | F62: 900.00 | G62: 900.00 | H62: 900.00 | I62: 900.00 | J62: 900.00 | K62: 900.00 | L62: 900.00 | M62: 900.00 | N62: 900.00 | O62: 900.00 | Q62: =SUM(Q59:Q61) -> 10,800.00
A63: Geben Sie Details in die Tabelle "Sonstige Ausgaben" ein, die in der Zelle rechts beginnt. Die Summe für sonstige Ausgaben für jeden Monat wird am Tabellenende und die jährliche Ergebnis in Zelle Q68 automatisch berechnet. Die Sparkline wird in Zelle S68 aktualisiert. Die nächste Anweisung finden Sie in Zelle A70. | B63: SONSTIGE AUSGABENPOSTEN | C63: Satz | D63: Monat 1 | E63: Monat 2 | F63: Monat 3 | G63: Monat 4 | H63: Monat 5 | I63: Monat 6 | J63: Monat 7 | K63: Monat 8 | L63: Monat 9 | M63: Monat 10 | N63: Monat 11 | O63: Monat 12
B64: SONSTIGE AUSGABEN
B65: Reise | D65: 50 | E65: 50 | F65: 50 | G65: 50 | H65: 50 | I65: 50 | J65: 50 | K65: 50 | L65: 50 | M65: 50 | N65: 50 | O65: 50 | Q65: =SUM('Marketingbudget Vertriebskanal'!$D65:$O65) -> 600.00
B66: Infrastruktur (Computer, Telefon usw.) | D66: 250.00 | E66: 250.00 | F66: 250.00 | G66: 250.00 | H66: 250.00 | I66: 250.00 | J66: 250.00 | K66: 250.00 | L66: 250.00 | M66: 250.00 | N66: 250.00 | O66: 250.00 | Q66: =SUM('Marketingbudget Vertriebskanal'!$D66:$O66) -> 3,000.00
B67: Kanalunterstützung | D67: 600 | E67: 600 | F67: 600 | G67: 600 | H67: 600 | I67: 600 | J67: 600 | K67: 600 | L67: 600 | M67: 600 | N67: 600 | O67: 600 | Q67: =SUM('Marketingbudget Vertriebskanal'!$D67:$O67) -> 7,200.00
B68: Summe sonstige Ausgaben (000) € | D68: =SUM(D65:D67) -> 900.00 | E68: =SUM(E65:E67) -> 900.00 | F68: 900.00 | G68: 900.00 | H68: 900.00 | I68: 900.00 | J68: 900.00 | K68: 900.00 | L68: 900.00 | M68: 900.00 | N68: 900.00 | O68: 900.00 | Q68: =SUM(Q65:Q67) -> 10,800.00
A70: Das Marketing-Gesamtbudget für jeden Monat wird in dieser Zeile in den Zellen D70 bis O70 und die jährliche Summe in Zelle Q70 automatisch berechnet. Die Sparkline wird in Zelle S70 automatisch aktualisiert. | B70: MARKETING-GESAMTBUDGET: | D70: =SUM(D34,AgentenUndMakler[[#Totals],[Monat 1]],Verteiler[[#Totals],[Monat 1]],Einzelhändler[[#Totals],[Monat 1]],KundengewinnungUndBindung[[#Totals],[Monat 1]],SonstigeAusgaben[[#Totals],[Monat 1]]) -> 6,454.00 | E70: =SUM(SonstigeAusgaben[[#Totals],[Monat 2]],KundengewinnungUndBindung[[#Totals],[Monat 2]],Einzelhändler[[#Totals],[Monat 2]],Verteiler[[#Totals],[Monat 2]],AgentenUndMakler[[#Totals],[Monat 2]],E34) -> 5,985.85 | F70: =SUM(SonstigeAusgaben[[#Totals],[Monat 3]],KundengewinnungUndBindung[[#Totals],[Monat 3]],Einzelhändler[[#Totals],[Monat 3]],Verteiler[[#Totals],[Monat 3]],AgentenUndMakler[[#Totals],[Monat 3]],F34) -> 5,934.44 | G70: =SUM(SonstigeAusgaben[[#Totals],[Monat 4]],KundengewinnungUndBindung[[#Totals],[Monat 4]],Einzelhändler[[#Totals],[Monat 4]],Verteiler[[#Totals],[Monat 4]],AgentenUndMakler[[#Totals],[Monat 4]],G34) -> 6,102.05 | H70: =SUM(SonstigeAusgaben[[#Totals],[Monat 5]],KundengewinnungUndBindung[[#Totals],[Monat 5]],Einzelhändler[[#Totals],[Monat 5]],Verteiler[[#Totals],[Monat 5]],AgentenUndMakler[[#Totals],[Monat 5]],H34) -> 6,116.35 | I70: =SUM(SonstigeAusgaben[[#Totals],[Monat 6]],KundengewinnungUndBindung[[#Totals],[Monat 6]],Einzelhändler[[#Totals],[Monat 6]],Verteiler[[#Totals],[Monat 6]],AgentenUndMakler[[#Totals],[Monat 6]],I34) -> 6,035.69 | J70: =SUM(SonstigeAusgaben[[#Totals],[Monat 7]],KundengewinnungUndBindung[[#Totals],[Monat 7]],Einzelhändler[[#Totals],[Monat 7]],Verteiler[[#Totals],[Monat 7]],AgentenUndMakler[[#Totals],[Monat 7]],J34) -> 6,076.90 | K70: =SUM(SonstigeAusgaben[[#Totals],[Monat 8]],KundengewinnungUndBindung[[#Totals],[Monat 8]],Einzelhändler[[#Totals],[Monat 8]],Verteiler[[#Totals],[Monat 8]],AgentenUndMakler[[#Totals],[Monat 8]],K34) -> 6,115.84 | L70: =SUM(SonstigeAusgaben[[#Totals],[Monat 9]],KundengewinnungUndBindung[[#Totals],[Monat 9]],Einzelhändler[[#Totals],[Monat 9]],Verteiler[[#Totals],[Monat 9]],AgentenUndMakler[[#Totals],[Monat 9]],L34) -> 6,231.80 | M70: =SUM(SonstigeAusgaben[[#Totals],[Monat 10]],KundengewinnungUndBindung[[#Totals],[Monat 10]],Einzelhändler[[#Totals],[Monat 10]],Verteiler[[#Totals],[Monat 10]],AgentenUndMakler[[#Totals],[Monat 10]],M34) -> 6,201.80 | N70: =SUM(SonstigeAusgaben[[#Totals],[Monat 11]],KundengewinnungUndBindung[[#Totals],[Monat 11]],Einzelhändler[[#Totals],[Monat 11]],Verteiler[[#Totals],[Monat 11]],AgentenUndMakler[[#Totals],[Monat 11]],N34) -> 6,156.80 | O70: =SUM(SonstigeAusgaben[[#Totals],[Monat 12]],KundengewinnungUndBindung[[#Totals],[Monat 12]],Einzelhändler[[#Totals],[Monat 12]],Verteiler[[#Totals],[Monat 12]],AgentenUndMakler[[#Totals],[Monat 12]],O34) -> 6,201.80 | Q70: =SUM(D70:O70) -> 73,613.31
